[Event "Tsaghkadzor Open 2024"]
[Site "Tsaghkadzor"]
[Date "2024.10.03"]
[Round "5.8"]
[White "Gharibyan, Mamikon"]
[Black "Baghdasaryan, Vahe"]
[Result "1-0"]
[ECO "D02"]
[WhiteElo "2472"]
[BlackElo "2251"]
[Annotator "TA"]
[PlyCount "91"]
[EventDate "2024.09.13"]
[EventType "swiss"]
[EventCountry "ARM"]
[SourceTitle "playchess.com"]
[Source "ChessBase"]
[SourceQuality "1"]
[TimeControl "40/5400+30:1800+30"]

{[%evp 14,91,1,10,19,16,19,0,15,0,22,22,22,15,16,-5,-2,-25,-10,-10,-8,-10,-2,-4,0,-9,-21,-5,14,22,14,26,56,55,40,41,42,41,55,54,48,58,80,28,91,80,118,110,128,127,193,188,257,250,410,418,447,413,431,243,240,191,341,315,392,279,412,399,638,658,693,695,743,725,714,678,688,642,612,295]} 1. d4 {[%emt 0:00:28]} d5 {[%emt 0:01:13]} 2. Bf4 {[%emt 0:01:14]} Nf6 {[%emt 0:00:14]} 3. e3 {[%emt 0:00:23]} c5 {[%emt 0:07:09]} 4. Nf3 {[%emt 0:00:34]} Nc6 {[%emt 0:01:29]} 5. Nbd2 {[%emt 0:00:26]} e6 {[%emt 0:00:05]} 6. c3 {[%emt 0:00:27]} Bd6 {[%emt 0:00:20]} 7. Bg3 {[%emt 0:00:43]} O-O {[%emt 0:02:00]} 8. Bd3 {[%emt 0:00:14]} c4 {[%emt 0:03:16]} 9. Bc2 {[%emt 0:02:00]} b5 {[%emt 0:01:21]} 10. Qe2 {[%emt 0:26:55]} Bb7 {[%emt 0:25:12] The position is equal.} 11. e4 {[%emt 0:05:06]} dxe4 {[%emt 0:04:17]} 12. Nxe4 {[%emt 0:02:11]} Nxe4 {[%emt 0:00:45]} 13. Qxe4 {[%emt 0:01:18][%csl Gc2][%cal Re4h7] [#]} g6 {[%emt 0:00:08][%cal Oc6b4]} 14. Qe3 {[%emt 0:01:46]} Ne7 {[%emt 0:02:08]} 15. Bh4 {[%emt 0:09:55]} Qc7 {[%emt 0:04:52]} 16. Bxe7 {[%emt 0:12:27]} Bxe7 {[%emt 0:12:14]} 17. h4 {[%emt 0:05:30][%cal Bh2h4,Bh4h5,Bh5g6,Bg6h7][%mdl 32]} Bxf3 {[%emt 0:02:21]} 18. Qxf3 {[%emt 0:02:58]} e5 {[%emt 0:01:41]} 19. h5 {[%emt 0:20:46]} exd4 {[%emt 0:02:04]} 20. hxg6 {[%emt 0:01:53]} Qe5+ {[%emt 0:00:40]} (20... fxg6 $2 21. Qd5+ Rf7 22. Qxa8+ $18) 21. Qe4 {[%emt 0:00:52] Some like it hot} Qxe4+ {[%emt 0:02:19]} 22. Bxe4 {[%emt 0:00:01]} Rad8 {[%emt 0:06:51]} 23. gxh7+ {[%emt 0:00:18]} Kh8 {[%emt 0:01:47]} 24. O-O-O {[%emt 0:00:32]} Bg5+ {[%emt 0:01:24]} (24... dxc3 $6 25. bxc3 Rb8 26. Rh5 $18) 25. Kb1 {[%emt 0:00:36]} f5 {[%emt 0:03:06]} 26. Bc6 {[%emt 0:00:25]} dxc3 {[%emt 0:00:59]} 27. bxc3 {[%emt 0:00:41]} a6 {[%emt 0:00:04]} 28. Bb7 {[%emt 0:02:16]} (28. Rxd8 $16 Rxd8 29. Rh5 Rd1+ 30. Kc2 Rd2+ 31. Kc1) 28... a5 {[%emt 0:01:42]} (28... Rb8 $11 29. Rd7 (29. Bxa6 $2 Rb6 $19) 29... Rfe8) 29. Ba6 {[%emt 0:01:09] White stays focused until the end.} b4 {[%emt 0:01:56]} 30. cxb4 {[%emt 0:00:19]} (30. Bxc4 bxc3 31. Rxd8 Rxd8 $18) 30... c3 {[%emt 0:00:08]} 31. b5 {[%emt 0:00:53]} Bd2 {[%emt 0:02:54]} (31... Rfe8 $16 32. Rxd8 (32. b6 Rd2 $16) 32... Bxd8) 32. Kc2 $18 {[%emt 0:00:17]} Rfe8 {[%emt 0:05:41]} (32... Rb8 $142 33. Rh5 Rf6) 33. b6 {[%emt 0:00:44] Hoping for b7.} Re4 $2 {[%emt 0:03:17]} (33... Re6 34. Rb1 Rb8) 34. b7 {[%emt 0:00:30]} Ra4 {[%emt 0:00:23]} 35. Ra1 {[%emt 0:00:17]} Bf4 {[%emt 0:01:26]} 36. Rhd1 {[%emt 0:00:17]} ({Not} 36. Kxc3 Be5+ 37. Kc2 Bxa1 38. Rxa1 Kxh7 $18) (36. g3 $142 Bc7 37. Rhe1 (37. Kxc3 Be5+ 38. Kc2 Bxa1 $18)) 36... Rxd1 {[%emt 0:00:25]} 37. Kxd1 {[%emt 0:01:07][%mdl 4096] Endgame. And now Kc2 would win. KRB-KRB} Be5 {[%emt 0:00:34]} (37... Rb4 $142) 38. Kc2 {[%emt 0:00:12] [#] a3 would now be deadly.} Kxh7 {[%emt 0:00:22]} 39. Bd3 {[%emt 0:00:48][%cal Oa2a3] Black must now prevent a3!} Kg6 {[%emt 0:00:11]} (39... Rf4 {might work better.} 40. f3 Rb4 41. Bxf5+ Kh6) 40. a3 {[%emt 0:00:00]} Kf6 {[%emt 0:00:00]} (40... Kf7 $142 41. f3 (41. Bxf5 Rf4 $18) 41... Kf6) 41. Re1 {[%emt 0:23:05][%cal Oe1e5] Rxe5! would kill now. White is clearly winning.} Bd6 {[%emt 0:17:48]} 42. Re8 {[%emt 0:01:27] Threatens to win with g3.} Rxa3 {[%emt 0:00:07]} 43. b8=Q {[%emt 0:00:10]} Bxb8 {[%emt 0:00:08]} 44. Rxb8 {[%emt 0:00:05]} Ra2+ {[%emt 0:00:01]} 45. Kxc3 {[%emt 0:00:08]} Rxf2 {[%emt 0:00:04]} 46. Rb2 {[%emt 0:00:16] Weighted Error Value: White=0.25 (precise) /Black=0.39.  Mistake:       	White=2     	Black=7      Inaccurate:     	---       	Black=2      OK:         	White=13    	Black=8      Best:        	White=4     	Black=2} (46. g4 $142) 1-0

[Event "Tsaghkadzor Open 2024"]
[Site "Tsaghkadzor"]
[Date "2024.10.03"]
[Round "6.1"]
[White "Nozdrachev, Vladislav"]
[Black "Karthik Venkataraman"]
[Result "0-1"]
[ECO "B33"]
[WhiteElo "2515"]
[BlackElo "2581"]
[Annotator "RC"]
[PlyCount "114"]
[EventDate "2024.09.13"]
[EventType "swiss"]
[EventCountry "ARM"]
[SourceTitle "playchess.com"]
[Source "ChessBase"]
[SourceQuality "1"]
[TimeControl "40/5400+30:1800+30"]

1. e4 {[%emt 0:00:03]} c5 {[%emt 0:00:18]} 2. Nf3 {[%emt 0:00:03]} Nc6 {[%emt 0:00:04]} 3. d4 {[%emt 0:00:05]} cxd4 {[%emt 0:00:06]} 4. Nxd4 {[%emt 0:00:04]} Nf6 {[%emt 0:01:46]} 5. Nc3 {[%emt 0:00:09]} e5 {[%emt 0:00:11]} 6. Ndb5 {[%emt 0:00:07]} d6 {[%emt 0:00:05]} 7. Nd5 {[%emt 0:00:05]} Nxd5 {[%emt 0:00:05]} 8. exd5 {[%emt 0:00:34]} Nb8 {[%emt 0:00:07]} 9. a4 {[%emt 0:00:00]} Be7 {[%emt 0:00:31]} 10. Be2 {[%emt 0:00:00]} O-O {[%emt 0:01:42]} 11. O-O {[%emt 0:00:00]} a6 {[%emt 0:06:04]} 12. Na3 {[%emt 0:02:37]} Bf5 {[%emt 0:00:04]} 13. Nc4 {[%emt 0:06:53]} Nd7 {[%emt 0:00:06]} 14. a5 {[%emt 0:00:05]} Qc7 {[%emt 0:03:49]} 15. Be3 {[%emt 0:02:16]} Bg6 {[%emt 0:14:57]} 16. Nb6 {[%emt 0:13:12]} Rae8 {[%emt 0:10:03]} 17. Nxd7 {[%emt 0:07:57]} Qxd7 {[%emt 0:00:04]} 18. c4 {[%emt 0:00:36]} f5 {[%emt 0:00:05]} 19. Bb6 {[%emt 0:00:00]} f4 {[%emt 0:05:23]} 20. Bg4 {[%emt 0:00:09]} Bf5 {[%emt 0:00:06]} 21. Bxf5 {[%emt 0:00:05]} Qxf5 {[%emt 0:00:05]} 22. f3 {[%emt 0:00:11]} e4 {[%emt 0:02:53]} 23. fxe4 {[%emt 0:09:20]} Qxe4 {[%emt 0:00:12]} 24. c5 {[%emt 0:00:03]} f3 {[%emt 0:10:01]} 25. Rxf3 {[%emt 0:00:41]} dxc5 {[%emt 0:00:09]} 26. Rxf8+ {[%emt 0:03:43]} Bxf8 {[%emt 0:01:37]} 27. Bc7 {[%emt 0:00:34]} Re7 {[%emt 0:09:22]} 28. d6 {[%emt 0:02:10]} Rd7 {[%emt 0:00:01]} 29. Qb3+ {[%emt 0:12:15]} c4 {[%emt 0:00:09]} 30. Qh3 {[%emt 0:00:04]} Rf7 {[%emt 0:00:02]} 31. Qc8 {[%emt 0:00:46]} Qd4+ {[%emt 0:08:43]} 32. Kh1 {[%emt 0:00:10]} Qxb2 {[%emt 0:00:03]} 33. Re1 {[%emt 0:03:16]} Qe5 {[%emt 0:07:24]} 34. Rc1 {[%emt 0:04:59]} Qe3 {[%emt 0:03:10]} 35. Rg1 {[%emt 0:01:13]} Qd3 {[%emt 0:00:05]} 36. Qxb7 {[%emt 0:08:16]} Qxd6 {[%emt 0:00:42]} 37. Bxd6 {[%emt 0:01:13]} Rxb7 {[%emt 0:00:02]} 38. Bxf8 {[%emt 0:00:15]} Kxf8 {[%emt 0:00:01]} 39. Rc1 {[%emt 0:00:06]} c3 {[%emt 0:08:44]} 40. Kg1 {[%emt 0:00:00]} Rc7 {[%emt 0:00:00]} 41. Rc2 {[%emt 0:16:53]} Ke7 {[%emt 0:15:53]} 42. Kf2 {[%emt 0:00:04]} Kd6 {[%emt 0:00:15]} 43. Ke2 {[%emt 0:00:30]} Kd5 {[%emt 0:01:45]} 44. Kd1 {[%emt 0:00:05]} Kc4 {[%emt 0:03:05]} 45. Re2 {[%emt 0:01:31]} Rb7 {[%emt 0:05:09]} 46. Re6 {[%emt 0:02:35]} Rb1+ {[%emt 0:00:07]} 47. Kc2 {[%emt 0:00:04]} Rb2+ {[%emt 0:00:02]} 48. Kc1 {[%emt 0:00:05]} Kb5 {[%emt 0:00:18]} 49. g3 {[%emt 0:07:20]} Rxh2 {[%emt 0:00:58]} 50. Rb6+ {[%emt 0:00:05]} Kxa5 {[%emt 0:00:24]} 51. Rb7 {[%emt 0:01:02]} g6 {[%emt 0:00:48]} 52. Rb3 {[%emt 0:00:48]} c2 {[%emt 0:00:07]} 53. Rb7 {[%emt 0:00:06]} h6 {[%emt 0:01:26]} 54. Rg7 {[%emt 0:02:02]} g5 {[%emt 0:00:21]} 55. Rb7 {[%emt 0:00:12]} h5 {[%emt 0:01:08]} 56. Rg7 {[%emt 0:03:09]} g4 {[%emt 0:00:11]} 57. Rb7 {[%emt 0:00:07]} h4 {[%emt 0:00:26]} 0-1

[Event "Tsaghkadzor Open 2024"]
[Site "Tsaghkadzor"]
[Date "2024.10.03"]
[Round "6.3"]
[White "Gabuzyan, Hovhannes"]
[Black "Andriasian, Zaven"]
[Result "1/2-1/2"]
[ECO "C69"]
[WhiteElo "2579"]
[BlackElo "2558"]
[Annotator "RC"]
[PlyCount "66"]
[EventDate "2024.09.13"]
[EventType "swiss"]
[EventCountry "ARM"]
[SourceTitle "playchess.com"]
[Source "ChessBase"]
[SourceQuality "1"]
[TimeControl "40/5400+30:1800+30"]

1. e4 {[%emt 0:00:03]} e5 {[%emt 0:03:24]} 2. Nf3 {[%emt 0:00:05]} Nc6 {[%emt 0:00:05]} 3. Bb5 {[%emt 0:01:35]} a6 {[%emt 0:00:59]} 4. Bxc6 {[%emt 0:00:04]} dxc6 {[%emt 0:00:07]} 5. O-O {[%emt 0:00:04]} f6 {[%emt 0:01:08]} 6. d4 {[%emt 0:00:20]} exd4 {[%emt 0:00:39]} 7. Nxd4 {[%emt 0:00:04]} Ne7 {[%emt 0:17:07]} 8. Be3 {[%emt 0:06:44]} Ng6 {[%emt 0:00:43]} 9. Nd2 {[%emt 0:00:04]} Bd6 {[%emt 0:02:53]} 10. c3 {[%emt 0:13:54]} O-O {[%emt 0:02:00]} 11. f4 {[%emt 0:02:32]} Qe8 {[%emt 0:05:02]} 12. Qf3 {[%emt 0:07:03]} f5 {[%emt 0:05:29]} 13. e5 {[%emt 0:03:27]} Be7 {[%emt 0:00:16]} 14. b4 {[%emt 0:01:47]} a5 {[%emt 0:00:54]} 15. a3 {[%emt 0:07:20]} Qf7 {[%emt 0:03:12]} 16. h3 {[%emt 0:07:16]} Ra6 {[%emt 0:07:18]} 17. b5 {[%emt 0:02:20]} cxb5 {[%emt 0:02:59]} 18. Nxb5 {[%emt 0:00:03]} Nh4 {[%emt 0:00:50]} 19. Qe2 {[%emt 0:00:59]} Rg6 {[%emt 0:05:24]} 20. Rf2 {[%emt 0:00:09]} Bd7 {[%emt 0:01:01]} 21. Kh2 {[%emt 0:15:25]} Rc6 {[%emt 0:19:03]} 22. a4 {[%emt 0:05:10]} Be6 {[%emt 0:01:25]} 23. Bd4 {[%emt 0:00:44]} Ng6 {[%emt 0:02:35]} 24. Rb1 {[%emt 0:03:24]} Bc4 {[%emt 0:02:23]} 25. Qe3 {[%emt 0:01:35]} Qd5 {[%emt 0:01:02]} 26. g3 {[%emt 0:02:47]} Rd8 {[%emt 0:01:26]} 27. Qf3 {[%emt 0:03:47]} Qxf3 {[%emt 0:01:35]} 28. Rxf3 {[%emt 0:00:13]} Bd5 {[%emt 0:01:28]} 29. Rf2 {[%emt 0:00:19]} Nf8 {[%emt 0:00:43]} 30. Be3 {[%emt 0:00:53]} Be6 {[%emt 0:02:47]} 31. Bd4 {[%emt 0:01:35]} Bd5 {[%emt 0:01:10]} 32. Be3 {[%emt 0:00:53]} Be6 {[%emt 0:01:37]} 33. Bd4 {[%emt 0:00:49]} Bd5 {[%emt 0:00:40]} 1/2-1/2

[Event "Tsaghkadzor Open 2024"]
[Site "Tsaghkadzor"]
[Date "2024.10.03"]
[Round "6.4"]
[White "Lobanov, Sergei"]
[Black "Hakobyan, Erik"]
[Result "1-0"]
[ECO "D35"]
[WhiteElo "2506"]
[BlackElo "2386"]
[Annotator "RC"]
[PlyCount "51"]
[EventDate "2024.09.13"]
[EventType "swiss"]
[EventCountry "ARM"]
[SourceTitle "playchess.com"]
[Source "ChessBase"]
[SourceQuality "1"]
[TimeControl "40/5400+30:1800+30"]

1. d4 {[%emt 0:00:03]} Nf6 {[%emt 0:00:16]} 2. c4 {[%emt 0:00:05]} e6 {[%emt 0:00:06]} 3. Nc3 {[%emt 0:00:04]} d5 {[%emt 0:00:22]} 4. cxd5 {[%emt 0:00:11]} exd5 {[%emt 0:00:07]} 5. Bg5 {[%emt 0:00:04]} Bb4 {[%emt 0:00:08]} 6. e3 {[%emt 0:00:19]} h6 {[%emt 0:00:07]} 7. Bh4 {[%emt 0:00:28]} g5 {[%emt 0:00:08]} 8. Bg3 {[%emt 0:00:05]} Ne4 {[%emt 0:00:04]} 9. a3 {[%emt 0:02:05]} Bxc3+ {[%emt 0:00:24]} 10. bxc3 {[%emt 0:00:02]} h5 {[%emt 0:00:08]} 11. f3 {[%emt 0:00:12]} Nxg3 {[%emt 0:00:06]} 12. hxg3 {[%emt 0:00:04]} Qd6 {[%emt 0:06:01]} 13. g4 {[%emt 0:03:57]} h4 {[%emt 0:00:38]} 14. Nh3 {[%emt 0:00:12]} Rg8 {[%emt 0:00:01]} 15. Bd3 {[%emt 0:03:26]} Be6 {[%emt 0:09:32]} 16. Qb3 {[%emt 0:06:11]} Qg3+ {[%emt 0:09:16]} 17. Kf1 {[%emt 0:08:24]} b6 {[%emt 0:06:31]} 18. Nf4 {[%emt 0:02:59]} Bxg4 {[%emt 0:21:33]} 19. Ne2 {[%emt 0:00:46]} Qd6 {[%emt 0:00:05]} 20. fxg4 {[%emt 0:00:03]} Nd7 {[%emt 0:00:04]} 21. Rh3 {[%emt 0:03:01]} Nf6 {[%emt 0:02:02]} 22. Bf5 {[%emt 0:00:36]} Kf8 {[%emt 0:00:06]} 23. c4 {[%emt 0:00:32]} Re8 {[%emt 0:02:56]} 24. cxd5 {[%emt 0:01:15]} Kg7 {[%emt 0:00:17]} 25. Kg1 {[%emt 0:01:46]} Re7 {[%emt 0:01:49]} 26. Nc3 {[%emt 0:04:01]} 1-0

[Event "Tsaghkadzor Open 2024"]
[Site "Tsaghkadzor"]
[Date "2024.10.03"]
[Round "6.5"]
[White "Gharibyan, Mamikon"]
[Black "Davtyan, Arsen"]
[Result "1/2-1/2"]
[ECO "C84"]
[WhiteElo "2472"]
[BlackElo "2377"]
[Annotator "RC"]
[PlyCount "72"]
[EventDate "2024.09.13"]
[EventType "swiss"]
[EventCountry "ARM"]
[SourceTitle "playchess.com"]
[Source "ChessBase"]
[SourceQuality "1"]
[TimeControl "40/5400+30:1800+30"]

1. e4 {[%emt 0:01:22]} e5 {[%emt 0:00:06]} 2. Nf3 {[%emt 0:00:46]} Nc6 {[%emt 0:00:06]} 3. Bb5 {[%emt 0:01:10]} a6 {[%emt 0:00:12]} 4. Ba4 {[%emt 0:00:11]} Nf6 {[%emt 0:00:05]} 5. O-O {[%emt 0:00:06]} Be7 {[%emt 0:01:56]} 6. d3 {[%emt 0:01:00]} b5 {[%emt 0:00:09]} 7. Bb3 {[%emt 0:00:10]} d6 {[%emt 0:00:04]} 8. Bd2 {[%emt 0:00:55]} O-O {[%emt 0:01:26]} 9. Re1 {[%emt 0:02:24]} h6 {[%emt 0:00:46]} 10. h3 {[%emt 0:00:39]} Re8 {[%emt 0:00:47]} 11. a3 {[%emt 0:10:17]} Bf8 {[%emt 0:13:10]} 12. Nc3 {[%emt 0:00:56]} Na5 {[%emt 0:00:36]} 13. Ba2 {[%emt 0:01:07]} c5 {[%emt 0:01:20]} 14. b4 {[%emt 0:08:32]} Nc6 {[%emt 0:00:50]} 15. Nd5 {[%emt 0:00:35]} Rb8 {[%emt 0:06:32]} 16. c4 {[%emt 0:07:17]} Bd7 {[%emt 0:17:33]} 17. Rb1 {[%emt 0:04:52]} Nxd5 {[%emt 0:12:01]} 18. cxd5 {[%emt 0:08:21]} Nd4 {[%emt 0:11:12]} 19. Nxd4 {[%emt 0:01:40]} cxd4 {[%emt 0:00:04]} 20. f4 {[%emt 0:00:55]} exf4 {[%emt 0:11:20]} 21. Bxf4 {[%emt 0:01:44]} Rc8 {[%emt 0:00:04]} 22. Qf3 {[%emt 0:07:34]} Qf6 {[%emt 0:04:36]} 23. Qg3 {[%emt 0:18:22]} g5 {[%emt 0:02:26]} 24. Rf1 {[%emt 0:04:13]} Qg6 {[%emt 0:00:42]} 25. Bc1 {[%emt 0:02:34]} Bg7 {[%emt 0:01:02]} 26. Bb2 {[%emt 0:06:10]} Be5 {[%emt 0:06:56]} 27. Qf2 {[%emt 0:00:22]} Qg7 {[%emt 0:00:02]} 28. Bb3 {[%emt 0:01:56]} Rf8 {[%emt 0:01:09]} 29. g4 {[%emt 0:02:17]} Rc7 {[%emt 0:02:03]} 30. Rbc1 {[%emt 0:01:02]} Rfc8 {[%emt 0:00:29]} 31. Rxc7 {[%emt 0:00:29]} Rxc7 {[%emt 0:00:00]} 32. Kg2 {[%emt 0:00:48]} Rc8 {[%emt 0:00:57]} 33. Bd1 {[%emt 0:01:11]} Rc7 {[%emt 0:01:27]} 34. Bf3 {[%emt 0:00:45]} Rc8 {[%emt 0:00:10]} 35. Bd1 {[%emt 0:00:20]} Rc7 {[%emt 0:00:01]} 36. Bf3 {[%emt 0:00:06]} Rc8 {[%emt 0:00:01]} 1/2-1/2

[Event "Tsaghkadzor Open 2024"]
[Site "Tsaghkadzor"]
[Date "2024.10.03"]
[Round "6.8"]
[White "Goganov, Aleksey"]
[Black "Gong, Sunle"]
[Result "1/2-1/2"]
[ECO "C42"]
[WhiteElo "2463"]
[BlackElo "2226"]
[Annotator "RC"]
[PlyCount "65"]
[EventDate "2024.09.13"]
[EventType "swiss"]
[EventCountry "ARM"]
[SourceTitle "playchess.com"]
[Source "ChessBase"]
[SourceQuality "1"]
[TimeControl "40/5400+30:1800+30"]

1. e4 {[%emt 0:00:04]} e5 {[%emt 0:00:07]} 2. Nf3 {[%emt 0:00:04]} Nf6 {[%emt 0:00:04]} 3. Nxe5 {[%emt 0:00:07]} d6 {[%emt 0:00:05]} 4. Nf3 {[%emt 0:00:04]} Nxe4 {[%emt 0:00:05]} 5. d4 {[%emt 0:00:05]} d5 {[%emt 0:00:08]} 6. Bd3 {[%emt 0:00:06]} Bd6 {[%emt 0:00:05]} 7. O-O {[%emt 0:00:55]} O-O {[%emt 0:00:05]} 8. c4 {[%emt 0:00:03]} c6 {[%emt 0:00:03]} 9. Re1 {[%emt 0:03:58]} Bf5 {[%emt 0:00:11]} 10. cxd5 {[%emt 0:00:06]} cxd5 {[%emt 0:00:05]} 11. Nc3 {[%emt 0:00:04]} Nxc3 {[%emt 0:00:14]} 12. bxc3 {[%emt 0:00:04]} Bxd3 {[%emt 0:00:04]} 13. Qxd3 {[%emt 0:00:04]} Nd7 {[%emt 0:00:15]} 14. Qf5 {[%emt 0:06:46]} Nb6 {[%emt 0:00:46]} 15. Ng5 {[%emt 0:00:31]} g6 {[%emt 0:00:04]} 16. Qh3 {[%emt 0:00:06]} h5 {[%emt 0:00:05]} 17. g4 {[%emt 0:00:38]} Qd7 {[%emt 0:00:48]} 18. gxh5 {[%emt 0:00:10]} Rfe8 {[%emt 0:00:06]} 19. Rxe8+ {[%emt 0:02:42]} Rxe8 {[%emt 0:00:05]} 20. Qxd7 {[%emt 0:00:05]} Nxd7 {[%emt 0:03:07]} 21. hxg6 {[%emt 0:01:38]} Re1+ {[%emt 0:04:18]} 22. Kg2 {[%emt 0:00:04]} fxg6 {[%emt 0:00:36]} 23. Nf3 {[%emt 0:00:09]} Rd1 {[%emt 0:00:41]} 24. Bb2 {[%emt 0:00:07]} Rxa1 {[%emt 0:00:29]} 25. Bxa1 {[%emt 0:00:03]} Nb6 {[%emt 0:02:07]} 26. Ne1 {[%emt 0:05:14]} Kf7 {[%emt 0:05:43]} 27. Nd3 {[%emt 0:02:20]} Ke6 {[%emt 0:01:59]} 28. h3 {[%emt 0:00:16]} Na4 {[%emt 0:00:52]} 29. Kf3 {[%emt 0:02:06]} Kf5 {[%emt 0:00:45]} 30. Ne1 {[%emt 0:02:31]} Bf4 {[%emt 0:10:19]} 31. Ke2 {[%emt 0:00:11]} a5 {[%emt 0:02:05]} 32. Nc2 {[%emt 0:05:31]} Nb6 {[%emt 0:02:02]} 33. Bb2 {[%emt 1:10:08]} 1/2-1/2